bitfinex-derivatives/quotes_SOLF0:USTF0_20260316
["timestamp","ask_amount","ask_price","bid_price","bid_amount"]
[1773623145661,9.796,91.859,91.797,12.0245097]
[1773623146362,12.28908171,91.858,91.799,12.0245097]
[1773623146665,12.28908171,91.858,91.77,8.14067175]
[1773623146666,12.28908171,91.858,91.78,12.0245097]
[1773623147661,12.28908171,91.847,91.786,21.8275097]
[1773623148164,12.28908171,91.847,91.787,12.0245097]
[1773623148367,12.28908171,91.835,91.787,12.0245097]
[1773623148667,12.28908171,91.835,91.777,10.10338163]
[1773623148668,12.28908171,91.835,91.777,9.804]
[1773623149458,12.28908171,91.835,91.772,12.0245097]
[1773623149662,12.28908171,91.825,91.772,12.0245097]
[1773623150865,12.28908171,91.825,91.774,21.8295097]
[1773623151163,12.28908171,91.825,91.775,12.0245097]
[1773623152573,12.28908171,91.825,91.778,9.804]
[1773623152773,12.50956556,91.824,91.771,12.30010306]
[1773623152967,12.50956556,91.824,91.762,10.10338163]
[1773623153371,12.73938776,91.813,91.762,10.10338163]
[1773623153572,12.73938776,91.813,91.757,12.30010306]
[1773623154768,9.801,91.807,91.757,12.30010306]
[1773623154964,12.73938776,91.813,91.757,12.30010306]
[1773623155363,12.73938776,91.811,91.758,9.806]
[1773623155767,12.73938776,91.811,91.749,13.03040093]
[1773623157073,12.73938776,91.8,91.749,13.03040093]
[1773623158770,3.41946046,91.78,91.738,10.10338163]
[1773623158972,3.41946046,91.77,91.734,23.13378256]
[1773623159275,3.41946046,91.77,91.736,9.809]
[1773623159476,3.41946046,91.78,91.736,9.809]
[1773623160773,3.41946046,91.78,91.736,19.91238163]
[1773623160973,3.41946046,91.78,91.738,9.808]
[1773623161172,16.15884822,91.79,91.74,10.10338163]
[1773623161371,3.41946046,91.79,91.742,13.03040093]
[1773623161576,3.41946046,91.81,91.756,13.03040093]
[1773623161776,3.41946046,91.81,91.761,13.03040093]
[1773623162475,3.41946046,91.82,91.764,13.03040093]
[1773623162775,3.41946046,91.83,91.787,9.803]
[1773623163078,12.73938776,91.838,91.788,13.03040093]
[1773623163268,12.73938776,91.838,91.798,9.802]
[1773623163469,12.73938776,91.838,91.788,13.03040093]
[1773623163674,3.41946046,91.83,91.788,13.03040093]
[1773623164677,12.73938776,91.829,91.778,9.804]
[1773623166683,12.73938776,91.813,91.754,13.03040093]
[1773623167882,12.73938776,91.813,91.754,22.83740093]
[1773623168383,6.80700658,91.811,91.754,13.03040093]
[1773623169282,6.80700658,91.811,91.761,9.806]
[1773623170989,16.23959463,91.824,91.764,13.03040093]
[1773623171188,6.44059463,91.821,91.764,13.03040093]
[1773623172088,9.8,91.82,91.764,13.03040093]
[1773623172387,16.24600649,91.82,91.764,13.03040093]
[1773623173083,9.8,91.816,91.764,13.03040093]
[1773623173288,16.27097157,91.816,91.764,13.03040093]
[1773623173787,6.49230713,91.815,91.764,13.03040093]
[1773623174188,6.49230713,91.815,91.765,9.806]
[1773623174389,6.49230713,91.815,91.766,13.03040093]
[1773623175688,9.799,91.825,91.769,13.03040093]
[1773623176588,16.12288815,91.825,91.769,13.03040093]
[1773623176989,34.26,91.83,91.771,13.03040093]
[1773623177596,6.31593953,91.829,91.78,9.804]
[1773623177786,6.31593953,91.829,91.771,13.03040093]
[1773623178792,6.31288358,91.828,91.774,13.03040093]
[1773623180497,6.31288358,91.828,91.777,9.804]
[1773623180796,6.31288358,91.828,91.778,13.03040093]
[1773623181595,6.31288358,91.828,91.779,9.804]
[1773623184401,6.31288358,91.828,91.779,23.68993756]
[1773623184699,34.26,91.838,91.784,13.88593756]
[1773623185000,34.26,91.864,91.784,13.88593756]
[1773623185500,40.2490152,91.864,91.784,13.88593756]
[1773623185700,5.9890152,91.863,91.784,13.88593756]
[1773623185997,34.26,91.864,91.801,13.88593756]
[1773623185998,6.01502803,91.862,91.801,13.88593756]
[1773623186899,6.03298642,91.849,91.801,13.88593756]
[1773623187598,15.86880743,91.848,91.801,13.88593756]
[1773623188302,6.07180743,91.848,91.802,9.802]
[1773623188697,6.07180743,91.848,91.801,13.88593756]
[1773623190897,9.796,91.858,91.802,13.88593756]
[1773623191096,6.13007383,91.857,91.802,13.88593756]
[1773623192308,3.41513439,91.85,91.802,13.88593756]
[1773623192505,9.56363173,91.85,91.802,13.88593756]
[1773623193007,9.797,91.848,91.802,13.88593756]
[1773623196210,9.56363173,91.85,91.802,13.88593756]
[1773623196412,9.796,91.856,91.806,13.88593756]
[1773623197309,9.796,91.856,91.808,9.801]
[1773623197515,3.41513439,91.86,91.809,13.88593756]
[1773623198616,3.41513439,91.86,91.81,9.801]
[1773623198918,3.41513439,91.87,91.811,13.88593756]
[1773623199308,44.054,91.873,91.811,13.88593756]
[1773623199309,6.27148618,91.869,91.811,13.88593756]
[1773623199514,6.27148618,91.869,91.818,13.88593756]
[1773623200516,16.05602164,91.868,91.818,13.88593756]
[1773623201314,6.27878149,91.867,91.818,13.88593756]
[1773623207324,15.58918747,91.866,91.818,13.88593756]
[1773623207925,9.795,91.864,91.818,13.88593756]
[1773623209925,5.77671495,91.859,91.808,12.9573791]
[1773623211028,5.77416728,91.849,91.8,12.9573791]
[1773623212624,9.797,91.848,91.8,12.9573791]
[1773623213026,5.77416728,91.849,91.801,9.802]
[1773623213330,5.83097033,91.869,91.811,12.63940628]
[1773623214632,9.795,91.867,91.815,9.8]
[1773623214830,15.68162618,91.867,91.816,13.23625288]
[1773623215226,9.795,91.864,91.816,13.23625288]
[1773623218529,9.796,91.86,91.816,13.23625288]
[1773623218730,34.26,91.876,91.803,13.23625288]
[1773623218731,5.93188659,91.849,91.803,13.23625288]
[1773623218935,3.41513439,91.84,91.803,13.23625288]
[1773623220438,9.797,91.846,91.803,13.23625288]
[1773623221430,5.85402011,91.819,91.769,13.23625288]
[1773623222331,9.8,91.817,91.769,13.23625288]
[1773623222538,5.85402011,91.819,91.769,13.23625288]
[1773623222539,3.41513439,91.81,91.769,13.23625288]
[1773623223534,3.41513439,91.8,91.755,13.23625288]
[1773623225742,9.802,91.797,91.755,13.23625288]
[1773623226136,3.41513439,91.8,91.755,13.23625288]
[1773623228441,3.41513439,91.79,91.741,13.23625288]
[1773623228641,3.41513439,91.78,91.741,13.23625288]
[1773623233841,3.41513439,91.77,91.731,13.23625288]
[1773623236549,3.41513439,91.78,91.731,13.23625288]
[1773623237345,3.41513439,91.79,91.731,13.23625288]
[1773623237545,3.41513439,91.79,91.72,3.41513439]
[1773623237546,3.41513439,91.79,91.733,13.23625288]
[1773623238850,3.41513439,91.78,91.733,13.23625288]
[1773623239439,34.26,91.808,91.686,34.28]
[1773623239440,5.91791105,91.802,91.737,13.23625288]
[1773623239644,3.41513439,91.8,91.737,13.23625288]
[1773623240350,15.7003589,91.799,91.742,13.23625288]
[1773623240548,3.41513439,91.79,91.742,13.23625288]
[1773623242152,3.41513439,91.79,91.745,12.66756955]
[1773623243346,3.41513439,91.79,91.746,9.808]
[1773623243548,3.41513439,91.79,91.747,12.66756955]
[1773623244057,3.41513439,91.8,91.751,12.66756955]
[1773623247059,3.41513439,91.8,91.752,9.807]
[1773623247260,3.41513439,91.8,91.753,12.66756955]
[1773623247856,3.41513439,91.8,91.755,9.807]
[1773623248059,6.0491264,91.799,91.756,12.66756955]
[1773623249258,3.41888054,91.8,91.756,12.66756955]
[1773623249654,3.41888054,91.8,91.755,9.807]
[1773623249655,6.05493135,91.789,91.731,12.66756955]
[1773623249855,3.41888054,91.77,91.731,12.66756955]
[1773623250561,3.41888054,91.78,91.731,12.66756955]
[1773623251055,3.41888054,91.78,91.732,9.809]
[1773623251362,3.41888054,91.78,91.733,12.66756955]
[1773623254664,3.41888054,91.76,91.716,12.66756955]
[1773623255461,3.41888054,91.74,91.697,12.66756955]
[1773623255765,3.41888054,91.75,91.697,12.66756955]
[1773623257565,3.41888054,91.75,91.7,12.66756955]
[1773623257870,5.75846408,91.838,91.741,12.66756955]
[1773623258060,9.14404358,91.82,91.751,12.66756955]
[1773623258366,3.41888054,91.83,91.763,12.66756955]
[1773623258666,34.28,91.834,91.763,12.66756955]
[1773623258667,3.41888054,91.82,91.763,12.66756955]
[1773623258862,3.41888054,91.8,91.748,12.66756955]
[1773623259167,3.41888054,91.78,91.748,12.66756955]
[1773623259359,5.32318014,91.794,91.748,12.66756955]
[1773623259360,3.41888054,91.79,91.748,12.66756955]
[1773623260263,9.803,91.792,91.748,12.66756955]
[1773623261270,5.32318014,91.794,91.748,12.66756955]
[1773623262770,9.802,91.803,91.751,12.66756955]
[1773623263364,5.38378849,91.808,91.761,12.66756955]
[1773623263571,5.38343102,91.828,91.771,12.66756955]
[1773623263870,5.38343102,91.828,91.781,12.66756955]
[1773623267181,15.18243102,91.828,91.781,12.66756955]
[1773623268083,5.38343102,91.828,91.781,12.66756955]
[1773623269678,5.38343102,91.828,91.736,20.31727236]
[1773623269679,5.41564204,91.825,91.767,12.66756955]
[1773623270578,9.8,91.822,91.767,12.66756955]
[1773623271675,9.8,91.822,91.76,13.22488054]
[1773623271676,9.8,91.822,91.771,12.66756955]
[1773623272079,6.24500965,91.818,91.757,12.99007126]
[1773623273589,9.801,91.813,91.757,12.99007126]
[1773623273783,9.801,91.813,91.76,3.41888054]
[1773623273982,9.801,91.813,91.761,12.90998093]
[1773623274689,6.24500965,91.818,91.761,12.90998093]
[1773623275179,4.93370201,91.816,91.761,12.90998093]
[1773623276589,14.96760193,91.813,91.761,12.90998093]
[1773623276784,5.18297146,91.812,91.761,12.90998093]
[1773623276991,5.18297146,91.809,91.746,12.90998093]
[1773623277491,5.18297146,91.809,91.751,12.90998093]
[1773623278391,5.18297146,91.809,91.712,20.31727236]
[1773623278392,3.41888054,91.83,91.771,12.90998093]
[1773623278591,5.17604766,91.829,91.771,12.90998093]
[1773623279090,3.41888054,91.82,91.771,12.90998093]
[1773623279593,5.17604766,91.829,91.772,9.805]
[1773623279792,5.17604766,91.829,91.773,12.90998093]
[1773623280590,9.799,91.828,91.773,12.90998093]
[1773623281190,3.41888054,91.85,91.791,12.90998093]
[1773623281390,34.28,91.854,91.791,12.90998093]
[1773623282193,39.49115373,91.854,91.791,12.90998093]
[1773623282392,5.21115373,91.849,91.791,12.90998093]
[1773623283087,5.30917906,91.864,91.801,12.90998093]
[1773623283286,5.30917906,91.863,91.801,12.90998093]
[1773623283484,5.30917906,91.859,91.801,12.90998093]
[1773623283686,5.30917906,91.849,91.801,12.90998093]
[1773623283893,3.41888054,91.84,91.801,12.90998093]
[1773623284489,5.30917906,91.849,91.801,12.90998093]
[1773623285594,9.797,91.848,91.801,12.90998093]
[1773623285894,34.26,91.85,91.801,12.90998093]
[1773623286596,34.26,91.85,91.803,12.90998093]
[1773623287792,9.796,91.86,91.811,12.90998093]
[1773623288794,13.21488054,91.86,91.811,12.90998093]
[1773623288989,5.70758573,91.859,91.811,12.90998093]
[1773623289298,3.41888054,91.84,91.794,12.90998093]
[1773623289499,5.70758573,91.849,91.794,12.90998093]
[1773623290299,5.72398434,91.844,91.794,12.90998093]
[1773623290490,3.41888054,91.84,91.794,12.90998093]
[1773623290996,3.41888054,91.85,91.794,12.90998093]
[1773623291302,9.796,91.853,91.794,12.90998093]
[1773623292599,9.796,91.853,91.796,12.90998093]
[1773623292795,3.41888054,91.85,91.796,12.90998093]
[1773623293398,5.76745388,91.819,91.761,12.90998093]
[1773623294600,5.76745388,91.819,91.762,9.806]
[1773623294904,5.76745388,91.819,91.763,12.90998093]
[1773623295202,5.76745388,91.819,91.765,9.806]
[1773623295502,5.76745388,91.819,91.766,12.90998093]
[1773623295709,3.41888054,91.81,91.766,12.90998093]
[1773623297702,9.801,91.808,91.766,12.90998093]
[1773623297907,3.41888054,91.8,91.766,12.90998093]
[1773623300512,3.41888054,91.79,91.752,12.90998093]
[1773623301511,3.41888054,91.78,91.738,12.90998093]
[1773623301910,3.41888054,91.77,91.738,12.90998093]
[1773623304715,3.41888054,91.76,91.704,9.812]
[1773623306809,3.41888054,91.76,91.712,12.11480998]
[1773623307212,3.41888054,91.77,91.712,12.11480998]
[1773623307418,3.41888054,91.78,91.712,12.11480998]
[1773623308409,3.41888054,91.78,91.71,3.41888054]
[1773623308410,3.41888054,91.77,91.732,12.11480998]
[1773623308908,3.42123432,91.77,91.732,12.11480998]
[1773623309909,12.25727591,91.829,91.76,3.42123432]
[1773623310114,3.42123432,91.83,91.78,12.11480998]
[1773623310312,3.42123432,91.82,91.78,12.11480998]
[1773623310514,3.42123432,91.81,91.751,12.11480998]
[1773623310713,3.42123432,91.8,91.751,12.11480998]
[1773623311311,13.22223432,91.81,91.751,12.11480998]
[1773623311915,3.42123432,91.8,91.751,12.11480998]
[1773623312114,3.42123432,91.81,91.753,12.11480998]
[1773623313614,3.42123432,91.81,91.755,12.11480998]
[1773623316320,3.42123432,91.81,91.758,9.806]
[1773623316520,12.25727591,91.817,91.761,12.11480998]
[1773623316723,12.25727591,91.833,91.77,3.42123432]
[1773623316922,19.583,91.902,91.727,19.62]
[1773623316923,3.42123432,91.84,91.781,12.11480998]
[1773623317222,9.798,91.839,91.783,12.11480998]
[1773623318813,22.05527591,91.839,91.783,12.11480998]
[1773623319013,9.798,91.836,91.783,12.11480998]
[1773623319220,12.25727591,91.829,91.783,12.11480998]
[1773623322124,3.42123432,91.84,91.783,12.11480998]
[1773623322424,12.25727591,91.844,91.783,12.11480998]
[1773623323424,12.25727591,91.844,91.791,12.11480998]
[1773623324324,9.797,91.843,91.791,12.11480998]
[1773623325027,9.798,91.84,91.791,12.11480998]
[1773623325223,12.25727591,91.839,91.791,12.11480998]
[1773623326826,3.42123432,91.85,91.791,12.11480998]
[1773623327325,12.25727591,91.849,91.791,12.11480998]
[1773623327525,22.05527591,91.839,91.791,12.11480998]
[1773623327726,12.25727591,91.838,91.791,12.11480998]
[1773623332523,3.42123432,91.85,91.792,11.91207929]
[1773623332730,15.20703637,91.85,91.792,11.91207929]
[1773623332929,11.78580205,91.849,91.792,11.91207929]
[1773623333630,9.797,91.847,91.792,11.91207929]
[1773623333925,3.42123432,91.84,91.792,11.91207929]
[1773623336228,3.42123432,91.84,91.758,13.49047535]
[1773623336229,11.28637325,91.868,91.811,10.910759]
[1773623336434,14.70760757,91.86,91.811,10.910759]
[1773623337021,9.796,91.857,91.799,10.910759]
[1773623337223,3.42123432,91.85,91.799,10.910759]
[1773623337633,11.28637325,91.859,91.801,10.910759]
[1773623338327,11.28637325,91.859,91.811,10.910759]
[1773623340629,11.28637325,91.856,91.8,3.42123432]
[1773623340831,11.28637325,91.849,91.797,10.910759]
[1773623341328,3.42123432,91.86,91.801,10.910759]
[1773623341530,3.42123432,91.87,91.811,10.910759]
[1773623341731,34.28,91.879,91.811,10.910759]
[1773623341925,11.28637325,91.879,91.831,10.910759]
[1773623342128,11.28637325,91.879,91.776,19.609]
[1773623342129,3.42123432,91.86,91.801,10.910759]
[1773623342631,3.42123432,91.85,91.801,10.910759]
[1773623343338,3.42123432,91.84,91.801,10.910759]
[1773623348243,13.21823432,91.85,91.801,10.910759]
[1773623350045,3.42123432,91.85,91.802,9.802]
[1773623350245,3.42123432,91.85,91.803,10.910759]
[1773623350643,11.28637325,91.858,91.807,10.910759]
[1773623351044,3.42123432,91.84,91.786,10.910759]
[1773623351243,3.42123432,91.84,91.787,10.910759]
[1773623351746,3.42123432,91.84,91.792,10.910759]
[1773623352150,3.42123432,91.84,91.798,10.910759]
[1773623352346,3.42123432,91.84,91.774,13.49047535]
[1773623352347,11.28637325,91.911,91.831,10.910759]
[1773623352646,3.42123432,91.9,91.841,10.910759]
[1773623353251,11.28637325,91.909,91.841,10.910759]
[1773623353651,9.792,91.898,91.842,10.910759]
[1773623354651,11.28637325,91.889,91.842,10.910759]
[1773623355048,11.28637325,91.889,91.808,13.49047535]
[1773623355049,3.42123432,91.87,91.827,10.910759]
[1773623356753,11.28637325,91.876,91.827,10.910759]
[1773623357454,3.42123432,91.87,91.827,10.910759]
[1773623358849,14.70760757,91.87,91.827,10.910759]
[1773623359049,11.28637325,91.869,91.827,10.910759]
[1773623359244,9.795,91.868,91.827,10.910759]
[1773623359447,3.42123432,91.86,91.811,10.910759]
[1773623359649,3.42123432,91.84,91.797,10.910759]
[1773623359954,3.42123432,91.83,91.782,10.910759]
[1773623362051,21.08437325,91.839,91.784,9.804]
[1773623362353,11.28637325,91.839,91.785,10.63069505]
[1773623362954,11.28637325,91.839,91.786,9.803]
[1773623363255,11.28637325,91.839,91.787,10.63069505]
[1773623363752,3.42123432,91.84,91.791,10.63069505]
[1773623364055,3.42123432,91.85,91.791,10.63069505]
[1773623365052,3.42123432,91.85,91.794,10.63069505]
[1773623365259,3.42123432,91.86,91.794,10.63069505]
[1773623365557,10.8112724,91.869,91.801,10.63069505]
[1773623365758,10.8112724,91.869,91.802,10.63069505]
[1773623366157,3.42123432,91.87,91.816,10.63069505]
[1773623367557,3.42123432,91.88,91.818,10.63069505]
[1773623368058,3.42123432,91.88,91.821,10.63069505]
[1773623368555,3.42123432,91.88,91.821,20.43069505]
[1773623368763,3.42123432,91.88,91.822,10.63069505]
[1773623370656,3.42123432,91.88,91.829,10.63069505]
[1773623370862,3.41281862,91.88,91.829,10.63069505]
[1773623371363,3.41281862,91.88,91.833,10.63069505]
[1773623372556,3.41281862,91.88,91.834,9.798]
[1773623372862,3.41281862,91.88,91.835,10.63069505]
[1773623373057,14.22409102,91.9,91.835,10.63069505]
[1773623373662,14.22409102,91.9,91.842,10.63069505]
[1773623373862,3.41281862,91.89,91.842,10.63069505]
[1773623374265,10.8112724,91.898,91.842,10.63069505]
[1773623375365,45.0912724,91.916,91.851,10.63069505]
[1773623375664,45.0912724,91.916,91.807,20.27089365]
[1773623375665,34.28,91.916,91.861,10.63069505]
[1773623376665,34.28,91.916,91.86,3.41281862]
[1773623376666,34.28,91.916,91.864,10.63069505]
[1773623376960,14.22409102,91.93,91.864,10.63069505]
[1773623377558,10.8112724,91.928,91.867,10.63069505]
[1773623377763,3.41281862,91.92,91.867,10.63069505]
[1773623378757,3.41281862,91.92,91.871,10.63069505]
[1773623378960,3.41281862,91.93,91.871,10.63069505]
[1773623379159,3.41281862,91.94,91.871,10.63069505]
[1773623379969,14.22409102,91.94,91.871,10.63069505]
[1773623380659,9.787,91.938,91.882,10.63069505]
[1773623380971,14.22409102,91.93,91.882,10.63069505]
[1773623381359,10.8112724,91.929,91.882,10.63069505]
[1773623381966,9.787,91.938,91.882,10.63069505]
[1773623382167,10.8112724,91.969,91.913,10.63069505]
[1773623382365,3.41281862,91.96,91.913,10.63069505]
[1773623382969,3.41281862,91.93,91.889,10.63069505]
[1773623389671,9.788,91.929,91.889,10.63069505]
[1773623390269,20.5992724,91.929,91.889,10.63069505]
[1773623390975,10.8112724,91.928,91.872,10.63069505]
[1773623391177,3.41281862,91.92,91.872,10.63069505]
[1773623391376,3.41281862,91.9,91.872,10.63069505]
[1773623391971,3.41281862,91.9,91.851,9.10600618]
[1773623392476,3.41281862,91.89,91.851,9.10600618]
[1773623392973,3.41281862,91.9,91.851,9.10600618]
[1773623393571,10.66877358,91.909,91.851,9.10600618]
[1773623393773,3.41281862,91.92,91.851,9.10600618]
[1773623393970,34.26,91.919,91.851,9.10600618]
[1773623394677,20.45777358,91.917,91.863,10.60134211]
[1773623394974,3.41281862,91.91,91.863,10.60134211]
[1773623397274,9.79,91.909,91.863,10.60134211]
[1773623397679,3.41281862,91.9,91.845,10.60134211]
[1773623398079,3.41281862,91.89,91.845,10.60134211]
[1773623398274,34.28,91.889,91.845,10.60134211]
[1773623398976,3.41281862,91.92,91.861,10.60134211]
[1773623399377,14.0815922,91.92,91.861,10.60134211]
[1773623400284,14.0815922,91.92,91.862,9.795]
[1773623400582,14.0815922,91.92,91.863,10.60134211]
[1773623400777,14.0815922,91.92,91.867,10.60134211]
[1773623401083,14.0815922,91.92,91.823,13.49047535]
[1773623401084,10.66877358,91.935,91.881,10.60134211]
[1773623401287,34.28,91.936,91.881,10.60134211]
[1773623401479,34.28,91.936,91.891,10.60134211]
[1773623401678,34.28,91.936,91.838,13.49047535]
[1773623401679,3.41281862,91.92,91.868,10.60134211]
[1773623401876,10.66877358,91.929,91.871,10.60134211]
[1773623402681,10.66877358,91.929,91.881,10.60134211]
[1773623403285,10.66877358,91.929,91.883,10.60134211]
[1773623403482,34.28,91.936,91.883,10.60134211]
[1773623405489,10.66877358,91.933,91.883,10.60134211]
[1773623405982,9.788,91.932,91.883,10.60134211]
[1773623407086,10.66877358,91.952,91.883,10.60134211]
[1773623407294,34.26,91.959,91.883,10.60134211]
[1773623407588,10.66877358,91.958,91.883,10.60134211]
[1773623407789,10.66877358,91.957,91.892,10.60134211]
[1773623408386,9.786,91.953,91.897,10.60134211]
[1773623408795,10.66877358,91.972,91.897,10.60134211]
[1773623408993,9.784,91.968,91.907,9.791]
[1773623409287,9.784,91.968,91.908,10.60134211]
[1773623410192,34.26,91.967,91.911,10.60134211]
[1773623411593,34.26,91.967,91.916,10.60134211]
[1773623412596,34.26,91.966,91.916,10.60134211]
[1773623412992,10.66877358,91.992,91.918,10.60134211]
[1773623413199,10.66877358,92.006,91.928,10.60134211]
[1773623413399,34.26,92.015,91.932,10.08816972]
[1773623413588,34.26,92.015,91.934,10.60134211]
[1773623413791,34.26,92.015,91.964,10.60134211]
[1773623413989,10.66877358,92.014,91.964,10.60134211]
[1773623414394,44.92877358,92.014,91.964,10.60134211]
[1773623414594,10.66877358,92.014,91.964,10.60134211]
[1773623415092,9.778,92.026,91.964,10.60134211]
[1773623415298,10.66877358,92.036,91.964,10.60134211]
[1773623415498,10.66877358,92.034,91.964,10.60134211]
[1773623415700,10.66877358,92.03,91.964,10.60134211]
[1773623416297,10.66877358,92.03,91.967,10.60134211]
[1773623416795,10.66877358,92.018,91.944,10.60134211]
[1773623417195,10.66877358,92.016,91.944,10.60134211]
[1773623417898,10.66877358,92.016,91.948,10.60134211]
[1773623419093,10.66877358,92.016,91.952,10.60134211]
[1773623420096,10.66877358,92.014,91.952,10.60134211]
[1773623420293,10.66877358,92.014,91.937,10.60134211]
[1773623421098,10.66877358,92.012,91.937,10.60134211]
[1773623421397,10.66877358,92.003,91.937,10.60134211]
[1773623422702,9.42790102,92.0,91.937,10.60134211]
[1773623423098,9.42790102,92.0,91.89,8.11536372]
[1773623423099,9.42790102,92.0,91.939,9.77980477]
[1773623423802,9.42790102,92.0,91.943,9.77980477]
[1773623424498,9.42790102,91.988,91.933,9.77980477]
[1773623425598,9.42790102,91.985,91.933,9.77980477]
[1773623426906,3.40551543,91.98,91.933,9.77980477]
[1773623427498,9.42790102,91.985,91.933,9.77980477]
[1773623427902,9.42790102,91.985,91.934,9.788]
[1773623428205,9.42790102,91.985,91.935,9.77980477]
[1773623429097,3.40551543,91.98,91.935,9.77980477]
[1773623430403,3.40551543,91.97,91.935,9.77980477]
[1773623430907,3.40580373,91.97,91.935,9.77980477]
[1773623431810,3.40580373,91.96,91.92,9.77980477]
[1773623432012,3.40580373,91.95,91.906,9.77980477]
[1773623432805,9.42790102,91.969,91.906,9.77980477]
[1773623433613,9.42790102,91.964,91.906,9.77980477]
[1773623434514,9.785,91.962,91.906,9.77980477]
[1773623434721,9.42790102,91.961,91.906,9.77980477]
[1773623435010,9.42790102,91.959,91.893,9.77980477]
[1773623435406,9.786,91.95,91.893,9.77980477]
[1773623436311,9.42790102,91.958,91.896,9.77980477]
[1773623436610,9.42790102,91.973,91.896,9.77980477]
[1773623437611,34.24,91.977,91.886,10.08816972]
[1773623437612,9.42790102,91.967,91.908,9.77980477]
[1773623438517,9.785,91.964,91.908,9.77980477]
[1773623438916,9.42790102,91.967,91.911,9.77980477]
[1773623439813,34.26,91.978,91.923,9.77980477]
[1773623440419,9.783,91.976,91.923,9.77980477]
[1773623440717,32.68,91.999,91.88,28.2888207]
[1773623440718,9.42790102,91.999,91.925,9.77980477]
[1773623441714,9.783,91.979,91.926,9.788]
[1773623441917,9.42790102,92.051,91.94,8.11248126]
[1773623442114,9.42790102,92.051,91.907,13.49047535]
[1773623442115,9.42790102,92.086,92.001,9.77980477]
[1773623442313,9.42790102,92.073,92.004,9.77980477]
[1773623442515,9.42790102,92.073,91.98,8.11248126]
[1773623442516,9.42790102,92.049,91.986,9.77980477]
[1773623443614,9.776,92.044,91.986,9.77980477]
[1773623443820,19.20390102,92.044,91.986,9.77980477]
[1773623444618,9.42790102,92.044,91.986,9.77980477]
[1773623445917,9.775,92.055,91.987,9.782]
[1773623446114,34.24,92.056,91.988,9.77980477]
[1773623446715,9.42790102,92.055,91.992,9.77980477]
[1773623447724,9.775,92.053,91.992,9.77980477]
[1773623448524,19.20390102,92.047,91.992,9.77980477]
[1773623449327,9.42790102,92.043,91.992,9.77980477]
[1773623449524,9.42790102,92.043,91.968,9.77980477]
[1773623450520,32.68,92.049,91.968,9.77980477]
[1773623450521,9.776,92.041,91.968,9.77980477]
[1773623450726,9.42790102,92.04,91.968,9.77980477]
[1773623451127,9.42790102,92.038,91.968,9.77980477]
[1773623452224,18.27750978,92.034,91.968,9.77980477]
[1773623452429,8.50050978,92.033,91.968,9.77980477]
[1773623453528,9.14150821,92.031,91.968,9.77980477]
[1773623454029,9.14150821,92.031,91.94,8.11248126]
[1773623454030,9.14150821,92.025,91.951,8.86638504]
[1773623454223,9.14150821,92.025,91.917,20.17633944]
[1773623454224,9.14150821,91.998,91.936,10.08816972]
[1773623454429,9.14150821,91.995,91.917,8.86638504]
[1773623454728,9.14150821,91.985,91.917,8.86638504]
[1773623454927,9.14150821,91.983,91.917,8.86638504]
[1773623455531,9.14150821,91.967,91.904,18.95455476]
[1773623456028,34.24,91.966,91.904,18.95455476]
[1773623456432,34.24,91.966,91.905,8.86638504]
[1773623456631,9.785,91.962,91.905,8.86638504]
[1773623457727,34.24,91.966,91.905,8.86638504]
[1773623458433,9.784,91.973,91.907,8.86638504]
[1773623458729,34.24,91.972,91.907,8.86638504]
[1773623459530,9.14150821,91.969,91.909,8.86638504]
[1773623459730,9.14150821,91.969,91.899,10.08816972]
[1773623459930,9.14150821,91.967,91.899,10.08816972]
[1773623460232,9.14150821,91.967,91.9,8.86638504]
[1773623460628,9.785,91.959,91.9,8.86638504]
[1773623461334,9.14150821,91.967,91.904,8.86638504]
[1773623461931,9.14150821,91.967,91.905,8.86638504]
[1773623462634,9.14150821,91.967,91.906,8.86638504]
[1773623462835,9.14150821,91.985,91.908,8.86638504]
[1773623463135,34.24,91.984,91.916,8.86638504]
[1773623463630,9.14150821,91.985,91.927,8.86638504]
[1773623464826,9.14150821,91.983,91.915,10.08816972]
[1773623465030,9.14150821,91.983,91.904,8.86638504]
[1773623466530,18.92550821,91.966,91.904,8.86638504]
[1773623468037,9.14150821,91.965,91.904,8.86638504]
[1773623468635,9.785,91.962,91.904,8.86638504]
[1773623469033,9.14150821,91.961,91.888,18.95455476]
[1773623469237,9.14150821,91.959,91.888,8.86638504]
[1773623469432,9.14150821,91.957,91.888,8.86638504]
[1773623469738,9.14150821,91.955,91.888,8.86638504]
[1773623469938,18.92750821,91.95,91.89,18.65838504]
[1773623470238,34.24,91.951,91.891,8.86638504]
[1773623470433,9.14150821,91.987,91.904,8.86638504]
[1773623470937,9.14150821,91.987,91.911,8.86638504]